fUSD/lending_fUSD_20240227
["ID","MTS","AMOUNT","RATE_DAILY","PERIOD"]
[315445974,1709039475862,-500.0,0.00023983,2]
[315445975,1709039475873,-150.0,0.00023983,2]
[315445976,1709039475882,-515.29,0.00023983,2]
[315445977,1709039475891,-500.0,0.00023983,2]
[315445978,1709039475901,-500.0,0.00023983,2]
[315445979,1709039475910,-500.0,0.00023983,2]
[315445980,1709039475921,-798.7,0.00023983,2]
[315445981,1709039475931,-723.47,0.00023983,2]
[315445982,1709039475940,-500.0,0.00023983,2]
[315445983,1709039475950,-670.09,0.00023983,2]
[315445984,1709039475960,-705.73,0.00023983,2]
[315445985,1709039475969,-500.0,0.00023983,2]
[315445986,1709039475979,-500.0,0.00023983,2]
[315445987,1709039475988,-1454.93,0.00023983,2]
[315445988,1709039475998,-638.61,0.00023983,2]
[315445989,1709039476007,-309.1,0.00023983,2]
[315445990,1709039476017,-587.25,0.00023983,2]
[315445991,1709039476027,-500.0,0.00023983,2]
[315445992,1709039476037,-1776.37,0.00023983,2]
[315445993,1709039476048,-2406.62,0.00023983,2]
[315445994,1709039476057,-922.09,0.00023983,2]
[315445995,1709039476067,-930.18,0.00023983,2]
[315445996,1709039476077,-2994.23,0.00023983,2]
[315445997,1709039476087,-744.62,0.00023983,2]
[315445998,1709039476101,-500.0,0.00023983,2]
[315445999,1709039476121,-500.0,0.00023983,2]
[315446000,1709039476137,-843.31,0.00023983,2]
[315446001,1709039476158,-1574.5787866,0.00023984,2]
[315446002,1709039476176,-1250.6057177,0.00023984,2]
[315446003,1709039476191,-926.6326488,0.00023984,2]
[315446004,1709039476207,-602.6595798,0.00023984,2]
[315446005,1709039476224,-278.6865109,0.00023984,2]
[315446006,1709039476242,-2670.9258538,0.00023984,2]
[315446007,1709039476261,-2120.6624196,0.00023984,2]
[315446008,1709039476277,-1570.3989853,0.00023984,2]
[315446009,1709039476293,-1020.1355511,0.00023984,2]
[315446010,1709039476310,-469.8721168,0.00023984,2]
[315446011,1709039476326,-11000.1587483,0.00023984,2]
[315446012,1709039476342,-8733.9089677,0.00023984,2]
[315446013,1709039476358,-6467.6591872,0.00023984,2]
[315446014,1709039476371,-4201.4094066,0.00023984,2]
[315446015,1709039476384,-1935.1596261,0.00023984,2]
[315446016,1709039476402,-400.0,0.0002399,2]
[315446017,1709039476414,-150.01,0.00023993,2]
[315446018,1709039476428,-999.96166085,0.00023994,2]
[315446019,1709039476443,-200.0,0.00023994,2]
[315446020,1709039476457,-1898.5518556,0.00023994,2]
[315446021,1709039476470,-3221.1892881,0.00023994,2]
[315446022,1709039476484,-13266.4085288,0.00023994,2]
[315446023,1709039476499,-51745.11797633,0.00023995,2]
[315446024,1709039476555,-500.0,0.00022739,2]
[315446025,1709039476571,-519.4249024,0.00022998,2]
[315446026,1709039476585,-641.5,0.00022999,2]
[315446027,1709039476598,-282237.48932342,0.00023995,2]
[315446028,1709039476615,-57000.0,0.00023995,2]
[315446029,1709039476632,-68397.3924324,0.00023995,2]
[315446030,1709039476650,-47663.73455258,0.00023995,2]
[315446031,1709039476666,-5682.0414,0.00023995,2]
[315446032,1709039476879,-377.11535532,0.00022739,2]
[315446033,1709039476899,-2464.92839468,0.00022739,2]
[315446034,1709039476908,-500.0,0.00022739,2]
[315446035,1709039476918,-500.0,0.00022739,2]
[315446036,1709039476928,-500.0,0.00022739,2]
[315446037,1709039476937,-500.0,0.00022739,2]
[315446038,1709039476947,-500.0,0.00022739,2]
[315446039,1709039476957,-349.40217015,0.00022739,2]
[315446040,1709039476975,-150.59782985,0.00022739,2]
[315446041,1709039476985,-500.0,0.00022739,2]
[315446042,1709039476995,-500.0,0.00022739,2]
[315446043,1709039477033,-500.0,0.00022827,2]
[315446044,1709039477043,-641.5,0.00022999,2]
[315446045,1709039477053,-641.5,0.00023027,2]
[315446046,1709039477062,-641.5,0.00023899,2]
[315446047,1709039477071,-12957.33266587,0.00023995,2]
[315446048,1709039477088,-28335.86342928,0.00023995,2]
[315446049,1709039477105,-500.0,0.00022739,2]
[315446050,1709039477115,-30454.36162854,0.00023995,2]
[315446051,1709039477129,-344.5935173,0.00023995,2]
[315446052,1709039477143,-25587.30511042,0.00023995,2]
[315446053,1709039477152,-1158.43028326,0.00023997,2]
[315446055,1709039477162,-541.66,0.00023998,2]
[315446056,1709039477488,-500.0,0.00023998,2]
[315446057,1709039477504,-500.0,0.00023998,2]
[315446058,1709039477517,-500.0,0.00023998,2]
[315446059,1709039477526,-628.22,0.00023998,2]
[315446060,1709039477536,-500.0,0.00023998,2]
[315446061,1709039477545,-718.07,0.00023998,2]
[315446062,1709039477554,-150.0,0.00023998,2]
[315446063,1709039477564,-500.0,0.00023998,2]
[315446064,1709039477572,-500.0,0.00023998,2]
[315446065,1709039477582,-500.0,0.00023998,2]
[315446066,1709039477592,-798.7,0.00023998,2]
[315446067,1709039477602,-738.75,0.00023998,2]
[315446068,1709039477611,-738.75,0.00023998,2]
[315446069,1709039477620,-723.47,0.00023998,2]
[315446070,1709039477629,-500.0,0.00023998,2]
[315446071,1709039477639,-670.09,0.00023998,2]
[315446072,1709039477648,-705.73,0.00023998,2]
[315446073,1709039477657,-500.0,0.00023998,2]
[315446074,1709039477667,-3416.36,0.00023998,2]
[315446075,1709039477676,-379.18660643,0.00023998,2]
[315446076,1709039478091,-500.0,0.00022739,2]
[315446077,1709039478101,-500.0,0.00022739,2]
[315446078,1709039478110,-500.0,0.00022739,2]
[315446079,1709039478120,-500.0,0.00022739,2]
[315446080,1709039478130,-500.0,0.00022739,2]
[315446081,1709039478141,-608.82,0.00022739,2]
[315446082,1709039478150,-500.0,0.00022739,2]
[315446083,1709039478160,-2958.48,0.00022739,2]
[315446084,1709039478170,-500.0,0.00022739,2]
[315446085,1709039478179,-2958.48,0.00022739,2]
[315446086,1709039478189,-2958.48,0.00022739,2]
[315446087,1709039478199,-500.0,0.00022827,2]
[315446088,1709039478210,-500.0,0.00022897,2]
[315446089,1709039478219,-500.0,0.00022897,2]
[315446090,1709039478228,-2958.48,0.00022897,2]
[315446091,1709039478238,-500.0,0.00022898,2]
[315446092,1709039478248,-500.0,0.00022898,2]
[315446093,1709039478258,-500.0,0.00022898,2]
[315446094,1709039478268,-500.0,0.00022899,2]
[315446095,1709039478277,-2139.09272024,0.00022899,2]
[315446096,1709039478307,-500.0,0.00022898,2]
[315446097,1709039478316,-819.38727976,0.00022899,2]
[315446098,1709039478325,-950.54272024,0.00022899,2]
[315446099,1709039478338,-2007.93727976,0.00022899,2]
[315446100,1709039478347,-158.659641,0.00023993,2]
[315446101,1709039478357,-3037.17339357,0.00023998,2]
[315446102,1709039478367,-500.0,0.00023998,2]
[315446103,1709039478377,-500.0,0.00023998,2]
[315446104,1709039478387,-638.61,0.00023998,2]
[315446105,1709039478398,-500.0,0.00023998,2]
[315446106,1709039478408,-500.0,0.00023998,2]
[315446107,1709039478417,-500.0,0.00023998,2]
[315446108,1709039478427,-587.25,0.00023998,2]
[315446109,1709039478436,-329.33106151,0.00023998,2]
[315446110,1709039478470,-994.51893849,0.00023998,2]
[315446111,1709039478479,-1323.85,0.00023998,2]
[315446112,1709039478489,-500.0,0.00023998,2]
[315446113,1709039478499,-609.2,0.00023998,2]
[315446114,1709039478510,-1776.37,0.00023998,2]
[315446115,1709039478522,-2406.62,0.00023998,2]
[315446116,1709039478531,-922.09,0.00023998,2]
[315446117,1709039478540,-1627.11,0.00023998,2]
[315446118,1709039478551,-1627.11,0.00023998,2]
[315446119,1709039478561,-930.18,0.00023998,2]
[315446120,1709039478570,-622.23,0.00023998,2]
[315446121,1709039478581,-2796.93,0.00023998,2]
[315446122,1709039478590,-2796.93,0.00023998,2]
[315446123,1709039478600,-2994.23,0.00023998,2]
[315446124,1709039478610,-777.69,0.00023998,2]
[315446125,1709039478619,-777.69,0.00023998,2]
[315446126,1709039478629,-502.47,0.00023998,2]
[315446127,1709039478640,-2166.21,0.00023998,2]
[315446128,1709039478651,-2166.21,0.00023998,2]
[315446129,1709039478661,-507.7,0.00023998,2]
[315446130,1709039478671,-2371.42,0.00023998,2]
[315446131,1709039478682,-814.15,0.00023998,2]
[315446132,1709039478692,-814.15,0.00023998,2]
[315446133,1709039478702,-744.62,0.00023998,2]
[315446134,1709039478711,-594.76,0.00023998,2]
[315446135,1709039478722,-594.76,0.00023998,2]
[315446136,1709039478732,-156.8,0.00023998,2]
[315446137,1709039478741,-1344.36,0.00023998,2]
[315446138,1709039478751,-1344.36,0.00023998,2]
[315446139,1709039478761,-871.25,0.00023998,2]
[315446140,1709039478771,-500.0,0.00023998,2]
[315446141,1709039478783,-843.31,0.00023998,2]
[315446142,1709039478793,-710.45,0.00023998,2]
[315446143,1709039478803,-710.45,0.00023998,2]
[315446144,1709039478812,-641.5,0.00023998,2]
[315446145,1709039478822,-104533.22187711,0.00023999,2]
[315446146,1709039478834,-50017.19277559,0.00023999,2]
[315446147,1709039478843,-1002.0901,0.00023999,2]
[315446148,1709039478853,-500.0,0.00023999,2]
[315446149,1709039478864,-491.35,0.00023999,2]
[315446150,1709039478874,-500.0,0.00023999,2]
[315446151,1709039478885,-500.0,0.00023999,2]
[315446152,1709039478896,-150.5,0.00023999,2]
[315446153,1709039478905,-500.0,0.00023999,2]
[315446154,1709039478915,-500.0,0.00023999,2]
[315446155,1709039478927,-531.52,0.00023999,2]
[315446156,1709039478936,-628.22,0.00023999,2]
[315446157,1709039478946,-628.22,0.00023999,2]
[315446158,1709039478956,-628.22,0.00023999,2]
[315446159,1709039478967,-628.22,0.00023999,2]
[315446160,1709039478977,-628.22,0.00023999,2]
[315446161,1709039478987,-628.22,0.00023999,2]
[315446162,1709039478997,-500.0,0.00023999,2]
[315446163,1709039479007,-500.0,0.00023999,2]
[315446164,1709039479017,-500.0,0.00023999,2]
[315446165,1709039479027,-384.16,0.00023999,2]
[315446166,1709039479036,-718.07,0.00023999,2]
[315446167,1709039479046,-718.07,0.00023999,2]
[315446168,1709039479055,-718.07,0.00023999,2]
[315446169,1709039479064,-718.07,0.00023999,2]
[315446170,1709039479074,-718.07,0.00023999,2]
[315446171,1709039479084,-718.07,0.00023999,2]
[315446172,1709039479093,-718.07,0.00023999,2]
[315446173,1709039479102,-718.07,0.00023999,2]
[315446174,1709039479120,-718.22,0.00023999,2]
[315446175,1709039479132,-405.88,0.00023999,2]
[315446176,1709039479144,-307.12,0.00023999,2]
[315446177,1709039479154,-198.75,0.00023999,2]
[315446178,1709039479164,-515.29,0.00023999,2]
[315446179,1709039479174,-515.29,0.00023999,2]
[315446180,1709039479184,-515.29,0.00023999,2]
[315446181,1709039479194,-515.29,0.00023999,2]
[315446182,1709039479204,-515.29,0.00023999,2]
[315446183,1709039479214,-515.29,0.00023999,2]
[315446184,1709039479224,-515.29,0.00023999,2]
[315446185,1709039479234,-515.29,0.00023999,2]
[315446186,1709039479244,-515.29,0.00023999,2]
[315446187,1709039479254,-515.29,0.00023999,2]
[315446188,1709039479264,-515.29,0.00023999,2]
[315446189,1709039479275,-515.29,0.00023999,2]
[315446190,1709039479285,-515.29,0.00023999,2]
[315446191,1709039479295,-515.29,0.00023999,2]
[315446192,1709039479306,-515.29,0.00023999,2]
[315446193,1709039479315,-515.45,0.00023999,2]
[315446194,1709039479325,-500.0,0.00023999,2]
[315446195,1709039479335,-500.0,0.00023999,2]
[315446196,1709039479345,-500.0,0.00023999,2]
[315446197,1709039479355,-297.3,0.00023999,2]
[315446198,1709039479365,-357.45,0.00023999,2]
[315446199,1709039479376,-798.7,0.00023999,2]
[315446200,1709039479386,-798.7,0.00023999,2]
[315446201,1709039479400,-798.7,0.00023999,2]
[315446202,1709039479410,-798.7,0.00023999,2]
[315446203,1709039479419,-798.7,0.00023999,2]
[315446204,1709039479429,-798.7,0.00023999,2]
[315446205,1709039479438,-798.7,0.00023999,2]
[315446206,1709039479448,-798.7,0.00023999,2]
[315446207,1709039479457,-798.82,0.00023999,2]
[315446208,1709039479467,-738.75,0.00023999,2]
[315446209,1709039479477,-738.75,0.00023999,2]
[315446210,1709039479487,-738.75,0.00023999,2]
[315446211,1709039479497,-738.75,0.00023999,2]
[315446212,1709039479507,-738.75,0.00023999,2]
[315446213,1709039479517,-738.93653125,0.00023999,2]
[315446214,1709039479526,-723.47,0.00023999,2]
[315446215,1709039479535,-723.47,0.00023999,2]
[315446216,1709039479545,-723.47,0.00023999,2]
[315446217,1709039479554,-723.47,0.00023999,2]
[315446218,1709039479564,-723.47,0.00023999,2]
[315446219,1709039479573,-723.47,0.00023999,2]
[315446220,1709039479583,-723.47,0.00023999,2]
[315446221,1709039479593,-723.47,0.00023999,2]
[315446222,1709039479602,-723.47,0.00023999,2]
[315446223,1709039479613,-670.09,0.00023999,2]
[315446224,1709039479623,-670.09,0.00023999,2]
[315446225,1709039479632,-670.09,0.00023999,2]
[315446226,1709039479644,-670.09,0.00023999,2]
[315446227,1709039479654,-670.09,0.00023999,2]
[315446228,1709039479663,-670.21,0.00023999,2]
[315446229,1709039479673,-705.73,0.00023999,2]
[315446230,1709039479683,-705.73,0.00023999,2]
[315446231,1709039479693,-705.73,0.00023999,2]
[315446232,1709039479702,-705.73,0.00023999,2]
[315446233,1709039479713,-705.73,0.00023999,2]
[315446234,1709039479722,-705.91,0.00023999,2]
[315446235,1709039479732,-500.0,0.00023999,2]
[315446236,1709039479742,-500.0,0.00023999,2]
[315446237,1709039479753,-500.0,0.00023999,2]
[315446238,1709039479763,-500.0,0.00023999,2]
[315446239,1709039479773,-3416.36,0.00023999,2]
[315446240,1709039479783,-500.0,0.00023999,2]
[315446241,1709039479795,-3416.36,0.00023999,2]
[315446242,1709039479806,-508.6,0.00023999,2]
[315446243,1709039479815,-3416.36,0.00023999,2]
[315446244,1709039479825,-3416.36,0.00023999,2]
[315446245,1709039479838,-3416.36,0.00023999,2]
[315446246,1709039479848,-3416.54,0.00023999,2]
[315446247,1709039479858,-500.0,0.00023999,2]
[315446248,1709039479869,-500.0,0.00023999,2]
[315446249,1709039479879,-420.32,0.00023999,2]
[315446250,1709039479892,-500.0,0.00023999,2]
[315446251,1709039479902,-500.0,0.00023999,2]
[315446252,1709039479913,-500.0,0.00023999,2]
[315446253,1709039479923,-500.0,0.00023999,2]
[315446254,1709039479934,-500.0,0.00023999,2]
[315446255,1709039479944,-500.0,0.00023999,2]
[315446256,1709039479954,-500.0,0.00023999,2]
[315446257,1709039479964,-500.0,0.00023999,2]
[315446258,1709039479974,-379.4,0.00023999,2]
[315446259,1709039479983,-638.61,0.00023999,2]
[315446260,1709039479993,-638.61,0.00023999,2]
[315446261,1709039480004,-638.61,0.00023999,2]
[315446262,1709039480014,-500.0,0.00023999,2]
[315446263,1709039480024,-638.61,0.00023999,2]
[315446264,1709039480035,-500.0,0.00023999,2]
[315446265,1709039480045,-638.61,0.00023999,2]
[315446266,1709039480055,-500.0,0.00023999,2]
[315446267,1709039480064,-638.61,0.00023999,2]
[315446268,1709039480074,-500.0,0.00023999,2]
[315446269,1709039480084,-638.61,0.00023999,2]
[315446270,1709039480094,-328.07,0.00023999,2]
[315446271,1709039480104,-638.61,0.00023999,2]
[315446272,1709039480114,-638.61,0.00023999,2]
[315446273,1709039480124,-500.0,0.00023999,2]
[315446274,1709039480134,-500.0,0.00023999,2]
[315446275,1709039480146,-500.0,0.00023999,2]
[315446276,1709039480157,-500.0,0.00023999,2]
[315446277,1709039480167,-276.13,0.00023999,2]
[315446278,1709039480177,-587.25,0.00023999,2]
[315446279,1709039480187,-587.25,0.00023999,2]
[315446280,1709039480197,-587.25,0.00023999,2]
[315446281,1709039480207,-587.25,0.00023999,2]
[315446282,1709039480219,-587.25,0.00023999,2]
[315446283,1709039480229,-587.25,0.00023999,2]
[315446284,1709039480241,-587.25,0.00023999,2]
[315446285,1709039480251,-587.25,0.00023999,2]
[315446286,1709039480261,-587.37,0.00023999,2]
[315446287,1709039480272,-1323.85,0.00023999,2]
[315446288,1709039480282,-500.0,0.00023999,2]
[315446289,1709039480292,-1323.85,0.00023999,2]
[315446290,1709039480303,-1323.85,0.00023999,2]
[315446291,1709039480312,-1323.85,0.00023999,2]
[315446292,1709039480323,-1323.85,0.00023999,2]
[315446293,1709039480333,-1323.97,0.00023999,2]
[315446294,1709039480344,-500.0,0.00023999,2]
[315446295,1709039480355,-500.0,0.00023999,2]
[315446296,1709039480366,-500.0,0.00023999,2]
[315446297,1709039480376,-646.68,0.00023999,2]
[315446298,1709039480387,-1776.37,0.00023999,2]
[315446299,1709039480401,-1776.37,0.00023999,2]
[315446300,1709039480411,-1776.37,0.00023999,2]
[315446301,1709039480422,-1776.37,0.00023999,2]
[315446302,1709039480432,-1776.37,0.00023999,2]
[315446303,1709039480442,-1776.49,0.00023999,2]
[315446304,1709039480452,-2406.62,0.00023999,2]
[315446305,1709039480463,-2406.62,0.00023999,2]
[315446306,1709039480473,-2406.62,0.00023999,2]
[315446307,1709039480483,-2406.62,0.00023999,2]
[315446308,1709039480492,-2406.62,0.00023999,2]
[315446309,1709039480503,-2406.74,0.00023999,2]
[315446310,1709039480512,-922.09,0.00023999,2]
[315446311,1709039480525,-922.09,0.00023999,2]
[315446312,1709039480536,-1627.11,0.00023999,2]
[315446313,1709039480547,-922.09,0.00023999,2]
[315446314,1709039480558,-1627.11,0.00023999,2]
[315446315,1709039480570,-1627.11,0.00023999,2]
[315446316,1709039480580,-922.09,0.00023999,2]
[315446317,1709039480590,-1627.11,0.00023999,2]
[315446318,1709039480600,-922.09,0.00023999,2]
[315446319,1709039480610,-1627.11,0.00023999,2]
[315446320,1709039480620,-922.18,0.00023999,2]
[315446321,1709039480630,-1627.3,0.00023999,2]
[315446322,1709039480642,-930.18,0.00023999,2]
[315446323,1709039480654,-930.18,0.00023999,2]
[315446324,1709039480664,-930.18,0.00023999,2]
[315446325,1709039480675,-930.18,0.00023999,2]
[315446326,1709039480684,-930.18,0.00023999,2]
[315446327,1709039480694,-930.36,0.00023999,2]
[315446328,1709039480703,-622.23,0.00023999,2]
[315446329,1709039480713,-622.23,0.00023999,2]
[315446330,1709039480724,-622.23,0.00023999,2]
[315446331,1709039480735,-622.23,0.00023999,2]
[315446332,1709039480745,-622.23,0.00023999,2]
[315446333,1709039480755,-622.23,0.00023999,2]
[315446334,1709039480769,-2796.93,0.00023999,2]
[315446335,1709039480780,-622.23,0.00023999,2]
[315446336,1709039480791,-2796.93,0.00023999,2]
[315446337,1709039480803,-2796.93,0.00023999,2]
[315446338,1709039480814,-622.23,0.00023999,2]
[315446339,1709039481004,-2796.93,0.00023999,2]
[315446340,1709039481015,-2796.93,0.00023999,2]
[315446341,1709039481025,-622.41,0.00023999,2]
[315446342,1709039481035,-2797.11,0.00023999,2]
[315446343,1709039481044,-2994.23,0.00023999,2]
[315446344,1709039481054,-2994.23,0.00023999,2]
[315446345,1709039481063,-2994.23,0.00023999,2]
[315446346,1709039481073,-2994.23,0.00023999,2]
[315446347,1709039481082,-2994.23,0.00023999,2]
[315446348,1709039481092,-2994.23,0.00023999,2]
[315446349,1709039481101,-777.69,0.00023999,2]
[315446350,1709039481112,-777.69,0.00023999,2]
[315446351,1709039481121,-777.69,0.00023999,2]
[315446352,1709039481131,-777.69,0.00023999,2]
[315446353,1709039481143,-502.47,0.00023999,2]
[315446354,1709039481153,-777.69,0.00023999,2]
[315446355,1709039481162,-502.47,0.00023999,2]
[315446356,1709039481172,-502.47,0.00023999,2]
[315446357,1709039481182,-777.78,0.00023999,2]
[315446358,1709039481192,-502.47,0.00023999,2]
[315446359,1709039481202,-502.47,0.00023999,2]
[315446360,1709039481212,-502.47,0.00023999,2]
[315446361,1709039481222,-502.47,0.00023999,2]
[315446362,1709039481233,-502.47,0.00023999,2]
[315446363,1709039481242,-502.69,0.00023999,2]
[315446364,1709039481252,-2166.21,0.00023999,2]
[315446365,1709039481261,-2166.21,0.00023999,2]
[315446366,1709039481271,-2166.21,0.00023999,2]
[315446367,1709039481281,-2166.21,0.00023999,2]
[315446368,1709039481290,-2166.21,0.00023999,2]
[315446369,1709039481301,-2166.42,0.00023999,2]
[315446370,1709039481310,-507.7,0.00023999,2]
[315446371,1709039481320,-507.7,0.00023999,2]
[315446372,1709039481330,-507.7,0.00023999,2]
[315446373,1709039481340,-507.7,0.00023999,2]
[315446374,1709039481349,-507.7,0.00023999,2]
[315446375,1709039481359,-507.7,0.00023999,2]
[315446376,1709039481370,-507.7,0.00023999,2]
[315446377,1709039481380,-507.7,0.00023999,2]
[315446378,1709039481390,-507.8,0.00023999,2]
[315446379,1709039481402,-2371.42,0.00023999,2]
[315446380,1709039481413,-814.15,0.00023999,2]
[315446381,1709039481423,-814.15,0.00023999,2]
[315446382,1709039481433,-814.15,0.00023999,2]
[315446383,1709039481442,-814.15,0.00023999,2]
[315446384,1709039481452,-814.15,0.00023999,2]
[315446385,1709039481462,-814.3,0.00023999,2]
[315446386,1709039481472,-2371.42,0.00023999,2]
[315446387,1709039481482,-2371.42,0.00023999,2]
[315446388,1709039481492,-2371.42,0.00023999,2]
[315446389,1709039481502,-2371.42,0.00023999,2]
[315446390,1709039481512,-2371.42,0.00023999,2]
[315446391,1709039481523,-2371.42,0.00023999,2]
[315446392,1709039481533,-2371.42,0.00023999,2]
[315446393,1709039481544,-2371.64,0.00023999,2]
[315446394,1709039481553,-744.62,0.00023999,2]
[315446395,1709039481563,-744.62,0.00023999,2]
[315446396,1709039481572,-744.62,0.00023999,2]
[315446397,1709039481582,-744.62,0.00023999,2]
[315446398,1709039481591,-744.62,0.00023999,2]
[315446399,1709039481601,-744.74,0.00023999,2]
[315446400,1709039481611,-594.76,0.00023999,2]
[315446401,1709039481621,-594.76,0.00023999,2]
[315446402,1709039481632,-594.76,0.00023999,2]
[315446403,1709039481643,-594.76,0.00023999,2]
[315446404,1709039481653,-594.76,0.00023999,2]
[315446405,1709039481663,-594.97,0.00023999,2]
[315446406,1709039481673,-1344.36,0.00023999,2]
[315446407,1709039481683,-1344.36,0.00023999,2]
[315446408,1709039481693,-1344.36,0.00023999,2]
[315446409,1709039481702,-1344.36,0.00023999,2]
[315446410,1709039481712,-1344.36,0.00023999,2]
[315446411,1709039481721,-1344.42,0.00023999,2]
[315446412,1709039481730,-871.25,0.00023999,2]
[315446413,1709039481740,-871.25,0.00023999,2]
[315446414,1709039481749,-871.25,0.00023999,2]
[315446415,1709039481758,-871.25,0.00023999,2]
[315446416,1709039481769,-871.25,0.00023999,2]
[315446417,1709039481778,-871.25,0.00023999,2]
[315446418,1709039481791,-871.25,0.00023999,2]
[315446419,1709039481801,-871.25,0.00023999,2]
[315446420,1709039481811,-871.45,0.00023999,2]
[315446421,1709039481821,-355.8,0.00023999,2]
[315446422,1709039481831,-843.31,0.00023999,2]
[315446423,1709039481841,-843.31,0.00023999,2]
[315446424,1709039481852,-843.31,0.00023999,2]
[315446425,1709039481863,-843.31,0.00023999,2]
[315446426,1709039481873,-843.31,0.00023999,2]
[315446427,1709039481883,-843.52,0.00023999,2]
[315446428,1709039481893,-710.45,0.00023999,2]
[315446429,1709039481903,-710.45,0.00023999,2]
[315446430,1709039481912,-710.45,0.00023999,2]
[315446431,1709039481922,-710.45,0.00023999,2]
[315446432,1709039481931,-710.45,0.00023999,2]
[315446433,1709039481941,-710.57,0.00023999,2]
[315446434,1709039481950,-641.5,0.00023999,2]
[315446435,1709039481960,-641.5,0.00023999,2]
[315446436,1709039481970,-641.5,0.00023999,2]
[315446437,1709039481980,-641.5,0.00023999,2]
[315446438,1709039481990,-641.5,0.00023999,2]
[315446439,1709039482000,-471.08442225,0.00024,2]
[315446440,1709039482009,-67867.44464611,0.00024,30]
[315446441,1709039482030,-5530.65166105,0.00024,30]
[315446442,1709039482042,-1298.68,0.00024,30]
[315446443,1709039504973,-205.0,0.00020928,2]
[315446444,1709039504999,-408.67828753,0.00021979,2]
[315446445,1709039505025,-408.67828753,0.00021983,2]
[315446446,1709039505055,-408.67828753,0.00021985,2]
[315446447,1709039505080,-408.67828753,0.00022,2]
[315446448,1709039505104,-529.54,0.00022739,2]
[315446449,1709039505128,-213.64970202,0.00022739,2]
[315446450,1709039505152,-1266.71,0.00022739,2]
[315446451,1709039505177,-1266.71,0.00022739,2]
[315446452,1709039505200,-500.0,0.00022739,2]
[315446453,1709039505224,-1266.71,0.00022739,2]
[315446454,1709039505247,-1266.71,0.00022739,2]
[315446455,1709039505270,-500.0,0.00022739,2]
[315446456,1709039505293,-500.0,0.00022739,2]
[315446457,1709039505316,-293.77,0.00022739,2]
[315446458,1709039505339,-500.0,0.00022739,2]
[315446459,1709039505363,-500.0,0.00022739,2]
[315446460,1709039505386,-500.0,0.00022739,2]
[315446461,1709039505409,-500.0,0.00022739,2]
[315446462,1709039505434,-478.9658892,0.00022739,2]
[315446463,1709039505456,-500.0,0.00022739,2]
[315446464,1709039505481,-500.0,0.00022739,2]
[315446465,1709039505503,-500.0,0.00022739,2]
[315446466,1709039505526,-500.0,0.00022739,2]
[315446467,1709039505549,-500.0,0.00022739,2]
[315446468,1709039505570,-500.0,0.00022739,2]
[315446469,1709039505593,-500.0,0.00022739,2]
[315446470,1709039505615,-500.0,0.00022739,2]
[315446471,1709039505638,-621.99,0.00022739,2]
[315446472,1709039505660,-500.0,0.00022739,2]
[315446473,1709039505684,-621.99,0.00022739,2]
[315446474,1709039505707,-621.99,0.00022739,2]